[Event "December 19 Early 2023"]
[Site "https://www.chess.com"]
[Date "2023.12.19"]
[Round "5"]
[White "Limontaite, Simona"]
[Black "Tulchynskyi, Feliks"]
[Result "0-1"]
[Board "134"]
[TimeControl "180+1"]
[WhiteFideId "12802506"]
[BlackFideId "34127895"]
[WhiteElo "2092"]
[BlackElo "2131"]
[WhiteTeam "LTU"]
[BlackTeam "UKR"]
[WhiteClock "0:00:19"]
[BlackClock "0:00:04"]

1. d4 {[%clk 0:02:53]}  Nf6 {[%clk 0:02:53]} 2. c4 {[%clk 0:02:53]}  e6 {[%clk 0:02:54]} 3. Nf3 {[%clk 0:02:51]}  b6 {[%clk 0:02:53]} 4. g3 {[%clk 0:02:51]}  Bb7 {[%clk 0:02:46]} 5. Bg2 {[%clk 0:02:51]}  Be7 {[%clk 0:02:45]} 6. O-O {[%clk 0:02:51]}  O-O {[%clk 0:02:45]} 7. Nc3 {[%clk 0:02:51]}  Ne4 {[%clk 0:02:45]} 8. Qc2 {[%clk 0:02:52]}  Nxc3 {[%clk 0:02:39]} 9. Qxc3 {[%clk 0:02:51]}  d5 {[%clk 0:02:35]} 10. Ne5 {[%clk 0:02:49]}  Nd7 {[%clk 0:02:34]} 11. Rd1 {[%clk 0:02:44]}  c6 {[%clk 0:02:26]} 12. Nxd7 {[%clk 0:02:43]}  Qxd7 {[%clk 0:02:25]} 13. e4 {[%clk 0:02:43]}  Rac8 {[%clk 0:02:24]} 14. Be3 {[%clk 0:02:32]}  Rfd8 {[%clk 0:02:20]} 15. Rac1 {[%clk 0:02:19]}  Qe8 {[%clk 0:02:09]} 16. Qb3 {[%clk 0:01:49]}  dxc4 {[%clk 0:01:54]} 17. Qxc4 {[%clk 0:01:47]}  c5 {[%clk 0:01:50]} 18. d5 {[%clk 0:01:39]}  exd5 {[%clk 0:01:46]} 19. exd5 {[%clk 0:01:40]}  Bd6 {[%clk 0:01:44]} 20. Re1 {[%clk 0:01:30]}  Qd7 {[%clk 0:01:43]} 21. Qh4 {[%clk 0:01:23]}  Be7 {[%clk 0:01:41]} 22. Qh5 {[%clk 0:01:06]}  g6 {[%clk 0:01:29]} 23. Qe2 {[%clk 0:01:03]}  Bf6 {[%clk 0:01:21]} 24. Rcd1 {[%clk 0:01:00]}  Re8 {[%clk 0:01:17]} 25. Qc2 {[%clk 0:00:57]}  Rcd8 {[%clk 0:01:12]} 26. b3 {[%clk 0:00:47]}  h5 {[%clk 0:01:07]} 27. Re2 {[%clk 0:00:37]}  Ba6 {[%clk 0:01:05]} 28. Red2 {[%clk 0:00:38]}  h4 {[%clk 0:01:00]} 29. d6 {[%clk 0:00:37]}  hxg3 {[%clk 0:00:58]} 30. hxg3 {[%clk 0:00:37]}  Be5 {[%clk 0:00:51]} 31. Bg5 {[%clk 0:00:28]}  Rc8 {[%clk 0:00:45]} 32. Be4 {[%clk 0:00:23]}  Kg7 {[%clk 0:00:34]} 33. Rd5 {[%clk 0:00:20]}  f6 {[%clk 0:00:20]} 34. Be3 {[%clk 0:00:18]}  Bb7 {[%clk 0:00:20]} 35. R5d2 {[%clk 0:00:17]}  Bxe4 {[%clk 0:00:20]} 36. Qxe4 {[%clk 0:00:18]}  Bd4 {[%clk 0:00:17]} 37. Qf3 {[%clk 0:00:18]}  Bxe3 {[%clk 0:00:17]} 38. fxe3 {[%clk 0:00:18]}  Re6 {[%clk 0:00:17]} 39. Rd3 {[%clk 0:00:17]}  Rce8 {[%clk 0:00:17]} 40. Kf2 {[%clk 0:00:18]}  f5 {[%clk 0:00:17]} 41. R1d2 {[%clk 0:00:18]}  Rd8 {[%clk 0:00:17]} 42. Qd5 {[%clk 0:00:17]}  Rde8 {[%clk 0:00:16]} 43. a4 {[%clk 0:00:17]}  Re5 {[%clk 0:00:16]} 44. Qf3 {[%clk 0:00:17]}  Re4 {[%clk 0:00:16]} 45. a5 {[%clk 0:00:16]}  Rd8 {[%clk 0:00:15]} 46. Rd5 {[%clk 0:00:16]}  Qe6 {[%clk 0:00:14]} 47. axb6 {[%clk 0:00:16]}  axb6 {[%clk 0:00:14]} 48. d7 {[%clk 0:00:17]}  Qe7 {[%clk 0:00:11]} 49. R2d3 {[%clk 0:00:17]}  Qf6 {[%clk 0:00:10]} 50. Qd1 {[%clk 0:00:18]}  Qb2+ {[%clk 0:00:10]} 51. Qd2 {[%clk 0:00:17]}  Qxd2+ {[%clk 0:00:10]} 52. Rxd2 {[%clk 0:00:18]}  Re6 {[%clk 0:00:09]} 53. Rd6 {[%clk 0:00:18]}  Kf7 {[%clk 0:00:09]} 54. Kf3 {[%clk 0:00:18]}  Ke7 {[%clk 0:00:10]} 55. R6d5 {[%clk 0:00:18]}  Re4 {[%clk 0:00:08]} 56. R2d3 {[%clk 0:00:19]}  Re6 {[%clk 0:00:06]} 57. g4 {[%clk 0:00:19]}  fxg4+ {[%clk 0:00:06]} 58. Kxg4 {[%clk 0:00:20]}  Re4+ {[%clk 0:00:06]} 59. Kf3 {[%clk 0:00:20]}  Re6 {[%clk 0:00:06]} 60. e4 {[%clk 0:00:21]}  Rf6+ {[%clk 0:00:05]} 61. Ke3 {[%clk 0:00:21]}  g5 {[%clk 0:00:05]} 62. Rxg5 {[%clk 0:00:20]}  Rh6 {[%clk 0:00:05]} 63. Rg7+ {[%clk 0:00:21]}  Ke6 {[%clk 0:00:05]} 64. Rg3 {[%clk 0:00:20]}  Rxd7 {[%clk 0:00:04]} 65. Rxd7 {[%clk 0:00:20]}  Kxd7 {[%clk 0:00:05]} 66. Rg5 {[%clk 0:00:18]}  Kc6 {[%clk 0:00:05]} 67. Rg3 {[%clk 0:00:18]}  Kb5 {[%clk 0:00:05]} 68. Kd3 {[%clk 0:00:19]}  Kb4 {[%clk 0:00:06]} 69. e5 {[%clk 0:00:20]}  Kxb3 {[%clk 0:00:04]} 70. Ke4+ {[%clk 0:00:20]}  Kb4 {[%clk 0:00:04]} 71. Kd5 {[%clk 0:00:20]}  c4 {[%clk 0:00:05]} 72. e6 {[%clk 0:00:21]}  b5 {[%clk 0:00:04]} 73. e7 {[%clk 0:00:21]}  Rh8 {[%clk 0:00:05]} 74. Kd6 {[%clk 0:00:20]}  c3 {[%clk 0:00:03]} 75. Rf3 {[%clk 0:00:18]}  Re8 {[%clk 0:00:03]} 76. Rf1 {[%clk 0:00:19]}  Kc4 {[%clk 0:00:02]} 77. Kd7 {[%clk 0:00:19]}  Rxe7+ {[%clk 0:00:03]} 78. Kxe7 {[%clk 0:00:20]}  b4 {[%clk 0:00:03]} 79. Kd6 {[%clk 0:00:20]}  b3 {[%clk 0:00:04]} 80. Ke5 {[%clk 0:00:20]}  b2 {[%clk 0:00:04]} 81. Ke4 {[%clk 0:00:21]}  c2 {[%clk 0:00:04]} 82. Ke3 {[%clk 0:00:21]}  b1=Q {[%clk 0:00:04]} 83. Ke2 {[%clk 0:00:19]}  Qxf1+ {[%clk 0:00:04]} 0-1

[Event "December 19 Early 2023"]
[Site "https://www.chess.com"]
[Date "2023.12.19"]
[Round "5"]
[White "Vakhidov, Shahzod"]
[Black "Pogorelskikh, Sofia"]
[Result "0-1"]
[Board "136"]
[TimeControl "180+1"]
[WhiteFideId "14205270"]
[BlackFideId "44164548"]
[WhiteElo "2212"]
[BlackElo "2031"]
[WhiteTeam "UZB"]
[BlackTeam "SRB"]
[WhiteClock "0:00:00"]
[BlackClock "0:00:59"]

1. d4 {[%clk 0:03:00]}  Nf6 {[%clk 0:02:59]} 2. Nf3 {[%clk 0:03:01]}  g6 {[%clk 0:02:58]} 3. g3 {[%clk 0:03:01]}  Bg7 {[%clk 0:02:58]} 4. c4 {[%clk 0:03:01]}  O-O {[%clk 0:02:57]} 5. Bg2 {[%clk 0:03:02]}  d5 {[%clk 0:02:55]} 6. cxd5 {[%clk 0:03:02]}  Nxd5 {[%clk 0:02:56]} 7. O-O {[%clk 0:03:03]}  Nb6 {[%clk 0:02:55]} 8. e4 {[%clk 0:03:03]}  Nc6 {[%clk 0:02:49]} 9. d5 {[%clk 0:03:03]}  Na5 {[%clk 0:02:49]} 10. Nc3 {[%clk 0:03:04]}  c6 {[%clk 0:02:40]} 11. Bf4 {[%clk 0:03:04]}  cxd5 {[%clk 0:02:35]} 12. exd5 {[%clk 0:03:05]}  Nac4 {[%clk 0:02:30]} 13. Qe2 {[%clk 0:03:05]}  Bg4 {[%clk 0:02:05]} 14. h3 {[%clk 0:03:04]}  Bxf3 {[%clk 0:02:01]} 15. Bxf3 {[%clk 0:03:05]}  Rc8 {[%clk 0:02:01]} 16. Rac1 {[%clk 0:03:03]}  Nxb2 {[%clk 0:01:55]} 17. Qxb2 {[%clk 0:03:04]}  Na4 {[%clk 0:01:54]} 18. Nxa4 {[%clk 0:03:02]}  Bxb2 {[%clk 0:01:53]} 19. Nxb2 {[%clk 0:02:59]}  Qa5 {[%clk 0:01:44]} 20. Nd3 {[%clk 0:02:38]}  Qxa2 {[%clk 0:01:40]} 21. Ra1 {[%clk 0:02:27]}  Qb3 {[%clk 0:01:39]} 22. Rfd1 {[%clk 0:01:56]}  Rc3 {[%clk 0:01:36]} 23. Be2 {[%clk 0:01:37]}  Qxd5 {[%clk 0:01:24]} 24. Rxa7 {[%clk 0:01:36]}  Rfc8 {[%clk 0:01:18]} 25. Ne5 {[%clk 0:01:33]}  Qe4 {[%clk 0:01:05]} 26. Bf1 {[%clk 0:01:33]}  g5 {[%clk 0:00:59]} 27. Bg2 {[%clk 0:00:00]}  Qe2 {[%clk 0:00:59]} 0-1

[Event "December 19 Early 2023"]
[Site "https://www.chess.com"]
[Date "2023.12.19"]
[Round "5"]
[White "aksuliini1"]
[Black "Petrukhina, Olga"]
[Result "1-0"]
[Board "137"]
[TimeControl "180+1"]
[BlackFideId "13703935"]
[WhiteElo "2541"]
[BlackElo "1991"]
[BlackTeam "KAZ"]
[WhiteClock "0:00:33"]
[BlackClock "0:00:00"]

1. e4 {[%clk 0:03:00]}  e6 {[%clk 0:02:51]} 2. d4 {[%clk 0:03:00]}  d5 {[%clk 0:02:48]} 3. Nd2 {[%clk 0:03:01]}  c5 {[%clk 0:02:45]} 4. Ngf3 {[%clk 0:02:58]}  cxd4 {[%clk 0:02:39]} 5. exd5 {[%clk 0:02:57]}  Qxd5 {[%clk 0:02:38]} 6. Bc4 {[%clk 0:02:56]}  Qd6 {[%clk 0:02:39]} 7. O-O {[%clk 0:02:56]}  Nf6 {[%clk 0:02:38]} 8. Nb3 {[%clk 0:02:57]}  Nc6 {[%clk 0:02:38]} 9. Nbxd4 {[%clk 0:02:58]}  Nxd4 {[%clk 0:02:39]} 10. Nxd4 {[%clk 0:02:58]}  a6 {[%clk 0:02:38]} 11. Re1 {[%clk 0:02:56]}  Qc7 {[%clk 0:02:38]} 12. Bb3 {[%clk 0:02:55]}  Bd7 {[%clk 0:02:38]} 13. c3 {[%clk 0:02:45]}  Bd6 {[%clk 0:02:27]} 14. h3 {[%clk 0:02:33]}  O-O-O {[%clk 0:02:22]} 15. Qe2 {[%clk 0:02:16]}  e5 {[%clk 0:02:02]} 16. Nf3 {[%clk 0:02:15]}  Bb5 {[%clk 0:01:22]} 17. c4 {[%clk 0:02:12]}  Bc6 {[%clk 0:01:21]} 18. Nxe5 {[%clk 0:01:21]}  Rhe8 {[%clk 0:01:18]} 19. f4 {[%clk 0:01:20]}  Bxe5 {[%clk 0:00:39]} 20. fxe5 {[%clk 0:01:21]}  Ne4 {[%clk 0:00:39]} 21. Bf4 {[%clk 0:01:18]}  Qb6+ {[%clk 0:00:34]} 22. Kh2 {[%clk 0:01:15]}  g5 {[%clk 0:00:33]} 23. Be3 {[%clk 0:01:00]}  Qc7 {[%clk 0:00:28]} 24. Rad1 {[%clk 0:00:49]}  Qxe5+ {[%clk 0:00:26]} 25. Kg1 {[%clk 0:00:50]}  h6 {[%clk 0:00:11]} 26. Bb6 {[%clk 0:00:45]}  Rxd1 {[%clk 0:00:11]} 27. Rxd1 {[%clk 0:00:45]}  f5 {[%clk 0:00:06]} 28. Qd3 {[%clk 0:00:40]}  Qe7 {[%clk 0:00:05]} 29. Qd4 {[%clk 0:00:33]}  f4 {[%clk 0:00:00]} 30. c5 {[%clk 0:00:33]} 1-0

[Event "December 19 Early 2023"]
[Site "https://www.chess.com"]
[Date "2023.12.19"]
[Round "5"]
[White "Fernandez Siles, Luis"]
[Black "Sanchez Alvares, Kelvin Antonio"]
[Result "1-0"]
[Board "142"]
[TimeControl "180+1"]
[WhiteFideId "2209420"]
[BlackFideId "3906680"]
[WhiteElo "2195"]
[BlackElo "2217"]
[WhiteTeam "ESP"]
[BlackTeam "VEN"]
[WhiteClock "0:00:22"]
[BlackClock "0:00:00"]

1. d4 {[%clk 0:03:00]}  d5 {[%clk 0:02:58]} 2. c4 {[%clk 0:03:00]}  c6 {[%clk 0:02:58]} 3. cxd5 {[%clk 0:03:00]}  cxd5 {[%clk 0:02:57]} 4. Bf4 {[%clk 0:03:00]}  Nc6 {[%clk 0:02:56]} 5. Nc3 {[%clk 0:02:59]}  Nf6 {[%clk 0:02:36]} 6. e3 {[%clk 0:02:58]}  Bf5 {[%clk 0:02:35]} 7. Qb3 {[%clk 0:02:54]}  Na5 {[%clk 0:02:32]} 8. Bb5+ {[%clk 0:02:52]}  Bd7 {[%clk 0:02:27]} 9. Qa4 {[%clk 0:02:53]}  Nc6 {[%clk 0:02:12]} 10. Qd1 {[%clk 0:02:52]}  a6 {[%clk 0:02:10]} 11. Bd3 {[%clk 0:02:52]}  Bg4 {[%clk 0:02:06]} 12. Nge2 {[%clk 0:02:52]}  e6 {[%clk 0:02:03]} 13. O-O {[%clk 0:02:49]}  Bxe2 {[%clk 0:01:59]} 14. Qxe2 {[%clk 0:02:47]}  Bd6 {[%clk 0:02:00]} 15. Bg5 {[%clk 0:02:46]}  h6 {[%clk 0:01:53]} 16. Bh4 {[%clk 0:02:45]}  O-O {[%clk 0:01:48]} 17. Rfc1 {[%clk 0:02:41]}  Rc8 {[%clk 0:01:45]} 18. a3 {[%clk 0:02:40]}  Na5 {[%clk 0:01:40]} 19. Bc2 {[%clk 0:02:41]}  Nc4 {[%clk 0:01:39]} 20. Bd3 {[%clk 0:02:22]}  g5 {[%clk 0:01:35]} 21. Bg3 {[%clk 0:02:01]}  Bxg3 {[%clk 0:01:34]} 22. hxg3 {[%clk 0:02:02]}  b5 {[%clk 0:01:33]} 23. b3 {[%clk 0:01:56]}  Na5 {[%clk 0:01:29]} 24. Qb2 {[%clk 0:01:53]}  Qe7 {[%clk 0:01:13]} 25. Na2 {[%clk 0:01:45]}  Qb7 {[%clk 0:00:59]} 26. Rc5 {[%clk 0:01:40]}  Nd7 {[%clk 0:00:57]} 27. Rcc1 {[%clk 0:01:31]}  Rxc1+ {[%clk 0:00:47]} 28. Rxc1 {[%clk 0:01:29]}  Rc8 {[%clk 0:00:47]} 29. Rxc8+ {[%clk 0:01:13]}  Qxc8 {[%clk 0:00:48]} 30. Nb4 {[%clk 0:01:13]}  Nb6 {[%clk 0:00:37]} 31. g4 {[%clk 0:01:07]}  Nc6 {[%clk 0:00:31]} 32. Nc2 {[%clk 0:01:04]}  Kg7 {[%clk 0:00:27]} 33. Qc3 {[%clk 0:01:01]}  Ne7 {[%clk 0:00:20]} 34. Qa5 {[%clk 0:00:57]}  Qc6 {[%clk 0:00:14]} 35. g3 {[%clk 0:00:57]}  Nd7 {[%clk 0:00:08]} 36. Kg2 {[%clk 0:00:54]}  Qb6 {[%clk 0:00:07]} 37. Qc3 {[%clk 0:00:51]}  Qc6 {[%clk 0:00:06]} 38. Qd2 {[%clk 0:00:37]}  Qb6 {[%clk 0:00:03]} 39. f3 {[%clk 0:00:32]}  Nc6 {[%clk 0:00:03]} 40. Qc3 {[%clk 0:00:32]}  a5 {[%clk 0:00:02]} 41. b4 {[%clk 0:00:30]}  axb4 {[%clk 0:00:01]} 42. axb4 {[%clk 0:00:28]}  Ndb8 {[%clk 0:00:01]} 43. e4 {[%clk 0:00:28]}  Na6 {[%clk 0:00:01]} 44. exd5 {[%clk 0:00:28]}  exd5 {[%clk 0:00:02]} 45. Ne3 {[%clk 0:00:28]}  Nc7 {[%clk 0:00:02]} 46. Nf5+ {[%clk 0:00:26]}  Kf6 {[%clk 0:00:01]} 47. Qe1 {[%clk 0:00:26]}  Ne6 {[%clk 0:00:00]} 48. Qe3 {[%clk 0:00:22]} 1-0

[Event "December 19 Early 2023"]
[Site "https://www.chess.com"]
[Date "2023.12.19"]
[Round "5"]
[White "Goltseva, Ekaterina"]
[Black "Zepeda Berlanga, Jan Enrique"]
[Result "1-0"]
[Board "145"]
[TimeControl "180+1"]
[WhiteFideId "24173770"]
[BlackFideId "5132355"]
[WhiteElo "2139"]
[BlackElo "1680"]
[WhiteTeam "RUS"]
[BlackTeam "MEX"]
[WhiteClock "0:00:29"]
[BlackClock "0:00:06"]

1. e4 {[%clk 0:03:00]}  c5 {[%clk 0:02:56]} 2. Nf3 {[%clk 0:02:58]}  d6 {[%clk 0:02:54]} 3. Bb5+ {[%clk 0:02:57]}  Bd7 {[%clk 0:02:50]} 4. Bxd7+ {[%clk 0:02:45]}  Qxd7 {[%clk 0:02:51]} 5. O-O {[%clk 0:02:45]}  g6 {[%clk 0:02:50]} 6. d4 {[%clk 0:02:40]}  cxd4 {[%clk 0:02:46]} 7. Nxd4 {[%clk 0:02:41]}  Bg7 {[%clk 0:02:46]} 8. c4 {[%clk 0:02:34]}  Nc6 {[%clk 0:02:41]} 9. Be3 {[%clk 0:02:28]}  Nf6 {[%clk 0:02:37]} 10. Nc3 {[%clk 0:02:22]}  Ng4 {[%clk 0:02:35]} 11. Nc2 {[%clk 0:02:02]}  Bxc3 {[%clk 0:02:10]} 12. bxc3 {[%clk 0:02:01]}  O-O {[%clk 0:02:00]} 13. Bg5 {[%clk 0:01:55]}  h6 {[%clk 0:01:46]} 14. Bf4 {[%clk 0:01:47]}  g5 {[%clk 0:01:40]} 15. Bc1 {[%clk 0:01:43]}  Nge5 {[%clk 0:01:30]} 16. Ne3 {[%clk 0:01:28]}  Qe6 {[%clk 0:01:02]} 17. Nd5 {[%clk 0:01:07]}  Rac8 {[%clk 0:00:58]} 18. f4 {[%clk 0:01:07]}  Nxc4 {[%clk 0:00:46]} 19. fxg5 {[%clk 0:01:05]}  Qxe4 {[%clk 0:00:43]} 20. gxh6 {[%clk 0:00:57]}  Kh8 {[%clk 0:00:17]} 21. Rf4 {[%clk 0:00:54]}  Qg6 {[%clk 0:00:13]} 22. Rxc4 {[%clk 0:00:50]}  Rg8 {[%clk 0:00:10]} 23. Nf4 {[%clk 0:00:43]}  Qxh6 {[%clk 0:00:08]} 24. Ng6+ {[%clk 0:00:37]}  Qxg6 {[%clk 0:00:08]} 25. Rh4+ {[%clk 0:00:37]}  Kg7 {[%clk 0:00:08]} 26. Rg4 {[%clk 0:00:38]}  Kf8 {[%clk 0:00:08]} 27. Rxg6 {[%clk 0:00:38]}  Rxg6 {[%clk 0:00:09]} 28. Bf4 {[%clk 0:00:35]}  Ne5 {[%clk 0:00:10]} 29. Bxe5 {[%clk 0:00:35]}  dxe5 {[%clk 0:00:11]} 30. Qf3 {[%clk 0:00:31]}  Rc7 {[%clk 0:00:10]} 31. Rd1 {[%clk 0:00:31]}  Rf6 {[%clk 0:00:10]} 32. Rd8+ {[%clk 0:00:30]}  Kg7 {[%clk 0:00:11]} 33. Qg3+ {[%clk 0:00:30]}  Rg6 {[%clk 0:00:06]} 34. Qxe5+ {[%clk 0:00:29]} 1-0

[Event "December 19 Early 2023"]
[Site "https://www.chess.com"]
[Date "2023.12.19"]
[Round "5"]
[White "Santos, Isaque Goncalves"]
[Black "Devaev, Alexander"]
[Result "0-1"]
[Board "146"]
[TimeControl "180+1"]
[WhiteFideId "2103885"]
[BlackFideId "4169395"]
[WhiteElo "1901"]
[BlackElo "2172"]
[WhiteTeam "BRA"]
[BlackTeam "RUS"]
[WhiteClock "0:00:00"]
[BlackClock "0:00:34"]

1. d4 {[%clk 0:02:53]}  Nf6 {[%clk 0:02:57]} 2. c4 {[%clk 0:02:51]}  e6 {[%clk 0:02:57]} 3. Nc3 {[%clk 0:02:36]}  Bb4 {[%clk 0:02:57]} 4. e3 {[%clk 0:02:35]}  c5 {[%clk 0:02:58]} 5. a3 {[%clk 0:02:35]}  Bxc3+ {[%clk 0:02:58]} 6. bxc3 {[%clk 0:02:34]}  Nc6 {[%clk 0:02:59]} 7. Nf3 {[%clk 0:02:33]}  d6 {[%clk 0:02:59]} 8. Bd3 {[%clk 0:02:31]}  e5 {[%clk 0:02:59]} 9. Bc2 {[%clk 0:02:10]}  O-O {[%clk 0:02:52]} 10. d5 {[%clk 0:01:52]}  Na5 {[%clk 0:02:50]} 11. Qe2 {[%clk 0:01:45]}  b6 {[%clk 0:02:48]} 12. O-O {[%clk 0:01:36]}  Ba6 {[%clk 0:02:48]} 13. Nd2 {[%clk 0:01:33]}  Ne8 {[%clk 0:02:29]} 14. f4 {[%clk 0:01:20]}  exf4 {[%clk 0:02:24]} 15. Rxf4 {[%clk 0:01:19]}  Nf6 {[%clk 0:02:09]} 16. Qd3 {[%clk 0:01:17]}  g6 {[%clk 0:02:05]} 17. Qf1 {[%clk 0:01:13]}  Nd7 {[%clk 0:02:05]} 18. Rb1 {[%clk 0:00:57]}  Ne5 {[%clk 0:02:02]} 19. Ba4 {[%clk 0:00:36]}  Qe7 {[%clk 0:01:46]} 20. Bb5 {[%clk 0:00:34]}  Bc8 {[%clk 0:01:44]} 21. Nf3 {[%clk 0:00:20]}  Rb8 {[%clk 0:01:38]} 22. Nxe5 {[%clk 0:00:18]}  Qxe5 {[%clk 0:01:28]} 23. Qd3 {[%clk 0:00:15]}  f5 {[%clk 0:00:50]} 24. Bd2 {[%clk 0:00:13]}  Rb7 {[%clk 0:00:40]} 25. e4 {[%clk 0:00:13]}  Rbf7 {[%clk 0:00:38]} 26. exf5 {[%clk 0:00:08]}  Bxf5 {[%clk 0:00:38]} 27. Qg3 {[%clk 0:00:06]}  Bxb1 {[%clk 0:00:35]} 28. Rxf7 {[%clk 0:00:05]}  Rxf7 {[%clk 0:00:36]} 29. Qxe5 {[%clk 0:00:04]}  dxe5 {[%clk 0:00:36]} 30. d6 {[%clk 0:00:04]}  Bf5 {[%clk 0:00:35]} 31. h3 {[%clk 0:00:03]}  Bd7 {[%clk 0:00:35]} 32. g4 {[%clk 0:00:03]}  Bxb5 {[%clk 0:00:34]} 33. cxb5 {[%clk 0:00:03]}  Nc4 {[%clk 0:00:34]} 34. Be1 {[%clk 0:00:00]}  Nxd6 {[%clk 0:00:34]} 0-1

[Event "December 19 Early 2023"]
[Site "https://www.chess.com"]
[Date "2023.12.19"]
[Round "5"]
[White "Khromkin, Andrey"]
[Black "Andreev, Konstantin"]
[Result "0-1"]
[Board "151"]
[TimeControl "180+1"]
[WhiteFideId "4154126"]
[BlackFideId "24239305"]
[WhiteElo "2394"]
[BlackElo "2093"]
[WhiteTeam "RUS"]
[BlackTeam "ITA"]
[WhiteClock "0:01:05"]
[BlackClock "0:01:25"]

1. d4 {[%clk 0:02:51]}  Nf6 {[%clk 0:02:53]} 2. c4 {[%clk 0:02:52]}  e6 {[%clk 0:02:52]} 3. Nf3 {[%clk 0:02:52]}  d5 {[%clk 0:02:51]} 4. Nc3 {[%clk 0:02:52]}  dxc4 {[%clk 0:02:50]} 5. Bg5 {[%clk 0:02:50]}  a6 {[%clk 0:02:49]} 6. e3 {[%clk 0:02:48]}  b5 {[%clk 0:02:47]} 7. a4 {[%clk 0:02:49]}  b4 {[%clk 0:02:46]} 8. Ne4 {[%clk 0:02:45]}  Be7 {[%clk 0:02:17]} 9. Bxc4 {[%clk 0:02:43]}  Nxe4 {[%clk 0:02:15]} 10. Bxe7 {[%clk 0:02:42]}  Qxe7 {[%clk 0:02:16]} 11. Ne5 {[%clk 0:02:42]}  Bb7 {[%clk 0:02:15]} 12. Bd3 {[%clk 0:02:37]}  O-O {[%clk 0:02:13]} 13. g4 {[%clk 0:02:32]}  Nc3 {[%clk 0:02:00]} 14. bxc3 {[%clk 0:02:27]}  Bxh1 {[%clk 0:01:59]} 15. Qc2 {[%clk 0:02:22]}  Qh4 {[%clk 0:01:49]} 16. O-O-O {[%clk 0:02:14]}  Bb7 {[%clk 0:01:47]} 17. f4 {[%clk 0:01:57]}  f6 {[%clk 0:01:43]} 18. Nc4 {[%clk 0:01:51]}  bxc3 {[%clk 0:01:41]} 19. Na5 {[%clk 0:01:49]}  Bf3 {[%clk 0:01:38]} 20. Rf1 {[%clk 0:01:47]}  Bxg4 {[%clk 0:01:37]} 21. Be4 {[%clk 0:01:44]}  Bf5 {[%clk 0:01:37]} 22. Bxf5 {[%clk 0:01:39]}  exf5 {[%clk 0:01:36]} 23. Qb3+ {[%clk 0:01:39]}  Kh8 {[%clk 0:01:35]} 24. Qd5 {[%clk 0:01:40]}  c6 {[%clk 0:01:33]} 25. Qd6 {[%clk 0:01:32]}  Nd7 {[%clk 0:01:27]} 26. Qxd7 {[%clk 0:01:28]}  Qxh2 {[%clk 0:01:26]} 27. Nc4 {[%clk 0:01:05]}  Qa2 {[%clk 0:01:25]} 0-1

[Event "December 19 Early 2023"]
[Site "https://www.chess.com"]
[Date "2023.12.19"]
[Round "5"]
[White "Kolmagorov, Alexey"]
[Black "Tao, Sihan"]
[Result "1/2-1/2"]
[Board "152"]
[TimeControl "180+1"]
[WhiteFideId "34129402"]
[BlackFideId "30982677"]
[WhiteElo "1989"]
[BlackElo "1943"]
[WhiteTeam "RUS"]
[BlackTeam "USA"]
[WhiteClock "0:00:19"]
[BlackClock "0:00:38"]

1. d4 {[%clk 0:03:00]}  Nf6 {[%clk 0:02:55]} 2. c4 {[%clk 0:03:00]}  e6 {[%clk 0:02:55]} 3. g3 {[%clk 0:03:00]}  d5 {[%clk 0:02:54]} 4. Bg2 {[%clk 0:03:01]}  Bb4+ {[%clk 0:02:54]} 5. Bd2 {[%clk 0:03:00]}  a5 {[%clk 0:02:54]} 6. Nf3 {[%clk 0:03:00]}  O-O {[%clk 0:02:53]} 7. Qc2 {[%clk 0:02:55]}  c6 {[%clk 0:02:50]} 8. O-O {[%clk 0:02:54]}  Be7 {[%clk 0:02:49]} 9. Bf4 {[%clk 0:02:50]}  h6 {[%clk 0:02:41]} 10. h4 {[%clk 0:02:46]}  Bd6 {[%clk 0:02:31]} 11. Bxd6 {[%clk 0:02:44]}  Qxd6 {[%clk 0:02:32]} 12. Nbd2 {[%clk 0:02:44]}  b6 {[%clk 0:02:28]} 13. e4 {[%clk 0:02:40]}  dxe4 {[%clk 0:02:29]} 14. Nxe4 {[%clk 0:02:41]}  Nxe4 {[%clk 0:02:29]} 15. Qxe4 {[%clk 0:02:42]}  Bb7 {[%clk 0:02:30]} 16. Ne5 {[%clk 0:02:31]}  Nd7 {[%clk 0:01:44]} 17. Rfd1 {[%clk 0:02:10]}  Nxe5 {[%clk 0:01:35]} 18. dxe5 {[%clk 0:02:10]}  Qe7 {[%clk 0:01:33]} 19. Rd6 {[%clk 0:02:07]}  Rad8 {[%clk 0:01:33]} 20. Rad1 {[%clk 0:02:07]}  Ba8 {[%clk 0:01:32]} 21. c5 {[%clk 0:01:55]}  bxc5 {[%clk 0:01:25]} 22. Qc4 {[%clk 0:01:46]}  Rb8 {[%clk 0:01:24]} 23. Rd7 {[%clk 0:01:31]}  Qe8 {[%clk 0:01:10]} 24. Qxc5 {[%clk 0:01:29]}  Rxb2 {[%clk 0:01:10]} 25. Qxa5 {[%clk 0:01:18]}  Rb5 {[%clk 0:01:03]} 26. Qc7 {[%clk 0:01:17]}  Rb7 {[%clk 0:00:58]} 27. Qd6 {[%clk 0:01:15]}  Rxd7 {[%clk 0:00:54]} 28. Qxd7 {[%clk 0:01:16]}  Qxd7 {[%clk 0:00:54]} 29. Rxd7 {[%clk 0:01:17]}  Rb8 {[%clk 0:00:54]} 30. Rc7 {[%clk 0:01:08]}  g6 {[%clk 0:00:54]} 31. a4 {[%clk 0:00:53]}  c5 {[%clk 0:00:53]} 32. Rxc5 {[%clk 0:00:49]}  Bxg2 {[%clk 0:00:51]} 33. Kxg2 {[%clk 0:00:50]}  Rb4 {[%clk 0:00:50]} 34. Ra5 {[%clk 0:00:42]}  h5 {[%clk 0:00:48]} 35. Ra7 {[%clk 0:00:41]}  Kf8 {[%clk 0:00:48]} 36. a5 {[%clk 0:00:36]}  Rb5 {[%clk 0:00:48]} 37. f4 {[%clk 0:00:36]}  Rd5 {[%clk 0:00:43]} 38. a6 {[%clk 0:00:35]}  Ra5 {[%clk 0:00:44]} 39. Ra8+ {[%clk 0:00:34]}  Kg7 {[%clk 0:00:44]} 40. Kf3 {[%clk 0:00:34]}  Ra3+ {[%clk 0:00:43]} 41. Ke4 {[%clk 0:00:31]}  Rxg3 {[%clk 0:00:42]} 42. Kd4 {[%clk 0:00:25]}  Rg4 {[%clk 0:00:40]} 43. Ke4 {[%clk 0:00:21]}  Rg3 {[%clk 0:00:38]} 44. Kd4 {[%clk 0:00:19]}  Rg4 {[%clk 0:00:38]} 45. Ke4 {[%clk 0:00:19]}  Rg3 {[%clk 0:00:38]} 1/2-1/2